Cogmind - Beta 16.1 @@@ ROGUE MODE // 2026.04.18 @ 17:29:47 Player: Maelyn Result: Destroyed by D-53 Grenadier with Mini Grenade Launcher Performance ------------- Evolutions (0) 0 Regions Visited (2) 400 Robots Destroyed (22) 110 Value Destroyed (420) 420 Prototype IDs (0) 0 Alien Tech Used (0) 0 Bonus (0) 0 TOTAL SCORE: 930 Bonus ------- None Cogmind --------- Core Integrity 0/250 Matter 208/300 Energy 100/100 System Corruption 0% Temperature Cool (0) Movement Rolling (105) Ox1 Location -10/Mines Parts ------- > --- POWER (1) -------- (None) > --- PROPULSION (2) --- Armored Wheel Armored Wheel > --- UTILITY (2) ------ Large Storage Unit Hardened Light Armor Plating > --- WEAPON (2) ------- (None) > --- INVENTORY (15) --- Improved Ion Engine Improved Aluminum Leg Improved Aluminum Leg Improved Aluminum Leg Improved Aluminum Leg Armored Wheel Armored Wheel Small Storage Unit ECM Suite Utility Shielding Hacking Suite Beam Cannon Peak State ------------ > --- POWER ------------ Improved Ion Engine > --- PROPULSION ------- Armored Wheel Armored Wheel > --- UTILITY ---------- Large Storage Unit Hardened Light Armor Plating > --- WEAPON ----------- Beam Cannon Autogun > --- INVENTORY -------- Ion Engine Light Ion Engine Light Treads Light Treads Improved Aluminum Leg Improved Aluminum Leg Improved Aluminum Leg Improved Aluminum Leg Small Storage Unit ECM Suite Utility Shielding Hacking Suite Medium Laser Light Assault Rifle Grenade Launcher [Rating: 14] Favorites ----------- Power Ion Engine Engine Ion Engine Propulsion Light Treads Treads Light Treads Wheel Armored Wheel Utility Large Storage Unit Storage Large Storage Unit Protection Hardened Light Armor Plating Weapon Light Assault Rifle Energy Cannon Beam Cannon Ballistic Gun Light Assault Rifle Launcher Grenade Launcher Build | -11 -10 -10 ------- Run | Yrd Mat Min Slots Evolved . | . . . Power . | . . . Propulsion . | . . . Utility . | . . . Weapon . | . . . Parts Attached 15 | 6 7 2 Power 2 | 1 1 . Engine 2 | 1 1 . Core . | . . . Reactor . | . . . Propulsion 4 | 2 2 . Treads 2 | 2 . . Leg . | . . . Wheel 2 | . 2 . Hover . | . . . Flight . | . . . Utility 3 | 1 2 . Device . | . . . Storage 2 | 1 1 . Processor . | . . . Hackware . | . . . Protection 1 | . 1 . Artifact . | . . . Weapon 6 | 2 2 2 Energy Gun . | . . . Energy Cannon 1 | . 1 . Ballistic Gun 3 | 2 1 . Ballistic Cannon . | . . . Launcher 2 | . . 2 Special Weapon . | . . . Impact Weapon . | . . . Slashing Weapon . | . . . Piercing Weapon . | . . . Special Melee Weapon . | . . . Unidentified Prototypes . | . . . Parts Lost 4 | . . 4 Power 1 | . . 1 Propulsion . | . . . Utility . | . . . Weapon 3 | . . 3 Highest Loss Streak 4 | . . 4 To Critical Strikes . | . . . Average Backups 9 | 1 10 13 Power . | . 1 1 Propulsion 4 | . 4 6 Utility 2 | . 2 4 Weapon 2 | . 2 2 Tool/Special . | . . . Unused Backups 17 | . 6 11 Power 2 | . 1 1 Propulsion 10 | . 4 6 Utility 4 | . 1 3 Weapon 1 | . . 1 Tool/Special . | . . . Average Slot Usage (%) 89 | . 87 99 Engine 13 | . 14 13 Treads 19 | . 23 . Wheel 7 | . 4 28 Storage 14 | . 14 14 Protection 5 | . 3 14 Energy Cannon 5 | . 4 9 Ballistic Gun 21 | . 23 14 Peak Build Rating 14 | 6 14 14 Average Rating 8 | 2 7 13 On Entrance 6 | . 6 14 Avg Prop Armor Cover (%) . | . . . Naked Turns . | . . . Heaviest Build 38 | 13 38 38 Greatest Support 40 | 40 40 24 Greatest Overweight (x) 12 | . 12 1 Average Overweight (x) . | . . 1 Largest Inventory Capacity 15 | 8 15 15 Average Capacity 12 | 6 12 15 Most Carried 15 | 5 15 14 Average Carried 9 | 1 10 13 Final Capacity 15 | 8 15 15 Final Carried 14 | 4 14 12 Class Distribution -------------------- 100% | Mutant Dominant Class ---------------- Mutant | -10/Materials Mutant | -10/Mines Resources | -11 -10 -10 ----------- Run | Yrd Mat Min Matter Collected 592 | 130 462 . Remotely . | . . . Salvage Created 626 | . 626 . Parts 42 | . 40 2 Haulers Intercepted 1 | . 1 . Recyclers Shooed . | . . . Parts Field Recycled . | . . . Retrieved Matter . | . . . Parts Self-Destructed . | . . . Prevented . | . . . Parts Restored . | . . . Kills | -11 -10 -10 ------- Run | Yrd Mat Min Combat Hostiles Destroyed 16 | . 15 1 Guns 12 | . 12 . Cannons 3 | . 3 . AOE 1 | . . 1 Classes Destroyed 8 | . 6 2 Tunneler 1 | . . 1 Hauler 1 | . 1 . Recycler 1 | . 1 . Operator 1 | . 1 . Watcher 3 | . 3 . Swarmer 8 | . 8 . Grunt 7 | . 7 . Assembled 1 | . . 1 Best Kill Streak 5 | . 5 2 Combat Bots Only 3 | . 3 1 Max Kills in Single Turn 1 | . 1 1 Gunslinging . | . . . Exploded 1 | . . 1 Melee . | . . . Uniques/NPCs Destroyed . | . . . Combat | -11 -10 -10 -------- Run | Yrd Mat Min Hostile Shots Fired 104 | . 84 20 Missed 22 | . 21 1 Hits 82 | . 63 19 Melee 4 | . . 4 Projectile 78 | . 63 15 AOE 16 | . . 16 Damage Taken 1408 | . 641 767 Core 266 | . 156 110 Absorbed by Shields . | . . . Core Remaining (%) 100 | 100 . . Volleys Fired 81 | . 71 10 Largest 2 | . 2 2 Hottest 83 | . 83 56 Shots Fired 157 | . 142 15 Gun 141 | . 131 10 Cannon 11 | . 11 . Launcher 5 | . . 5 Special . | . . . Kinetic 141 | . 131 10 Thermal 11 | . 11 . Explosive 5 | . . 5 Electromagnetic . | . . . Robot Hit Streak 16 | . 16 2 Robot Miss Streak 5 | . 5 3 Penetration Max . | . . . Secondary Targets 2 | . 2 . Max Gunslinging Chain 1 | . 1 . Shots Hit Robots 88 | . 83 5 Core Hits 41 | . 35 6 Critical Kills 1 | . 1 . Critical Parts Destroyed . | . . . Critical Strikes 1 | . 1 . Destroy 1 | . 1 . Melee Attacks . | . . . Impact . | . . . Slashing . | . . . Piercing . | . . . Sneak Attacks . | . . . Combat Hostiles . | . . . Follow-up Attacks . | . . . Damage Inflicted 1238 | . 979 259 Guns 875 | . 818 57 Cannons 85 | . 85 . Explosions 261 | . 72 189 Melee . | . . . Ramming 17 | . 4 13 Kinetic 875 | . 818 57 Thermal 85 | . 85 . Explosive 261 | . 72 189 Electromagnetic . | . . . Impact . | . . . Slashing . | . . . Piercing . | . . . Highest Corruption . | . . . Average Corruption . | . . . Corruption Purged . | . . . Corruption Blocked . | . . . Overload Shots . | . . . Overflow Damage 9 | . 6 3 Projectiles . | . . . Explosions 9 | . 6 3 Melee . | . . . Knockbacks . | . . . Impact . | . . . Kinetic . | . . . Secondary . | . . . Self-Inflicted Damage 38 | . . 38 Shots 1 | . . 1 Rammed 3 | . 1 2 Targets Rammed 4 | . 2 2 Kicked . | . . . Crushed 1 | . 1 . Highest Temperature 140 | . 140 33 Average Temperature 33 | . 37 14 Received Heat Transfer 234 | . 234 . Siege Activations . | . . . Martial Activations . | . . . Shielding Activations . | . . . Robots Disrupted . | . . . Combat Hostiles . | . . . Robots Corrupted . | . . . Combat Hostiles . | . . . Parts Fried . | . . . Impact Corruptions . | . . . Robots Melted . | . . . Combat Hostiles . | . . . Parts Melted . | . . . Heat Transferred 185 | . 185 . Parts Sabotaged . | . . . Parts Stolen . | . . . Parts Stripped . | . . . Power Chain Reactions . | . . . Alert | -11 -10 -10 ------- Run | Yrd Mat Min Maximum Alert Level 1 | . 1 . Low Security (%) 97 | 100 96 100 Level 1 2 | . 3 . Level 2 . | . . . Level 3 . | . . . Level 4 . | . . . Level 5 . | . . . High Security . | . . . Max Security . | . . . Peak Influence 211 | . 211 65 Initial 65 | . . 65 Average 70 | . 87 34 Influence Increases 486 | . 450 36 Destroy 0b10 Robot/C 300 | . 300 . Destroy 0b10 Robot/NC 35 | . 30 5 Destroy Leader 68 | . 68 . Successful Hack 21 | . 21 . Disable Machine 15 | . 15 . Destroy Structure 47 | . 16 31 Influence Decreases 486 | . 281 205 Entered New Map 104 | . . 104 Time Decay 351 | . 281 70 Lost Part 31 | . . 31 Squads Dispatched 3 | . 3 . Investigation 2 | . 2 . Extermination . | . . . Reinforcement 1 | . 1 . Assault . | . . . Garrison . | . . . Intercept . | . . . Searches Triggered . | . . . Construction Impeded . | . . . Haulers Reinforced . | . . . Active Scanning Responses . | . . . Cargo Convoy Interrupts . | . . . Stealth | -11 -10 -10 --------- Run | Yrd Mat Min Distress Signals 3 | . 2 1 Communications Jammed . | . . . Distress Signals . | . . . Times Spotted 27 | . 22 5 Peak Tracking Total 4 | . 4 3 Tactical Retreats 1 | . . 1 Traps | -11 -10 -10 ------- Run | Yrd Mat Min Traps Triggered 1 | . 1 . Indirectly . | . . . Trap Hack Attempts . | . . . Triggered . | . . . Disarmed . | . . . Reprogrammed . | . . . Reused . | . . . Traps Extracted . | . . . Installed . | . . . Triggered . | . . . Machines | -11 -10 -10 ---------- Run | Yrd Mat Min Machines Disabled 1 | . 1 . Max in Single Turn 1 | . 1 . Machines Repaired . | . . . Machines Dismantled . | . . . Machines Sabotaged . | . . . Overloaded Fab Kills . | . . . Hacking | -11 -10 -10 --------- Run | Yrd Mat Min Machines Accessed 3 | . 3 . Terminals 3 | . 3 . Fabricators . | . . . Repair Stations . | . . . Recycling Units . | . . . Scanalyzers . | . . . Garrison Access . | . . . Total Hacks 5 | . 5 . Successful 3 | . 3 . Failed 2 | . 2 . Catastrophic . | . . . Database Lockouts . | . . . Manual 5 | . 5 . Terminals 5 | . 5 . Fabricators . | . . . Repair Stations . | . . . Recycling Units . | . . . Scanalyzers . | . . . Garrison Access . | . . . Terminal Hacks . | . . . Fabricator Hacks . | . . . Repair Station Hacks . | . . . Recycling Unit Hacks . | . . . Scanalyzer . | . . . Garrison Access Hacks . | . . . Unauthorized Hacks 3 | . 3 . Terminals 3 | . 3 . Botnet 3 | . 3 . Fabricators . | . . . Repair Stations . | . . . Recycling Units . | . . . Scanalyzers . | . . . Garrison Access . | . . . Data Cores Recovered . | . . . Used . | . . . Hacking Detections 3 | . 3 . Full Trace Events 1 | . 1 . Feedback Events . | . . . Feedback Blocked . | . . . Robot Schematics Acquired . | . . . Robots Built . | . . . Authchips . | . . . Time . | . . . Total Robot Build Rating . | . . . Part Schematics Acquired . | . . . Parts Built . | . . . Authchips . | . . . Time . | . . . Total Part Build Rating . | . . . Part Studies Acquired . | . . . Parts Repaired . | . . . Time . | . . . Parts Recycled . | . . . Recycled Matter . | . . . Retrieved Matter . | . . . Retrieved Components . | . . . Parts Scanalyzed . | . . . Part Schematics Acquired . | . . . Parts Damaged . | . . . Bothacking | -11 -10 -10 ------------ Run | Yrd Mat Min Used RIF Installer . | . . . Robots Hacked . | . . . Non-combat . | . . . Combat . | . . . Robot Hacks Applied . | . . . Relay Couplers Released . | . . . Fabnet Peak Effective % . | . . . Robots Rewired . | . . . Allies Hacked . | . . . Hacks Repelled . | . . . Allies | -11 -10 -10 -------- Run | Yrd Mat Min Total Allies . | . . . Largest Group . | . . . Highest-Rated Group . | . . . Highest-Rated Ally . | . . . Total Orders . | . . . Ally Attacks . | . . . Total Damage . | . . . Kills . | . . . Allies Corrupted . | . . . Allies Melted . | . . . Intel | -11 -10 -10 ------- Run | Yrd Mat Min Active Infowar (turns) . | . . . Robot Analysis Total . | . . . Derelict Logs Recovered . | . . . Drone Launches . | . . . Drone Recoveries . | . . . Exploration | -11 -10 -10 ------------- Run | Yrd Mat Min Turns Passed 1207 | 135 918 154 Spaces Moved 615 | 57 440 118 Core 26 | 22 4 . Treads 359 | 35 324 . Legs . | . . . Wheels 230 | . 112 118 Hover . | . . . Flight . | . . . Fastest Speed 50 | 50 105 105 Average Speed 138 | 117 150 105 Slowest Speed 650 | 160 650 105 Overloaded Moves . | . . . Propulsion Burnouts . | . . . Robots Hopped . | . . . Potential Cave-ins . | . . . Cave-ins Triggered . | . . . Exploration Rate (%) 30 | 4 63 23 Regions Visited 2 Branch Regions 1 Pre-discovered Areas . | . . . Known Exits Taken . | . . . Unknown Exits Taken 2 | 1 1 . Scrap Searched . | . . . Spaces Dug . | . . . Terrain Destroyed 50 | . 16 34 Melee . | . . . Projectile . | . . . AOE 50 | . 16 34 Terrain Rammed . | . . . Walls Destroyed . | . . . Machines Disabled . | . . . Actions | -11 -10 -10 --------- Run | Yrd Mat Min Total 830 | 125 570 135 Wait 78 | 53 25 . Move 613 | 56 439 118 Hop . | . . . Pick Up 26 | 10 15 1 Fast Attach 4 | . 4 . Attach 7 | 6 . 1 Detach 1 | . 1 . Swap 4 | . 3 1 Drop 12 | . 10 2 Fire 81 | . 71 10 Melee . | . . . Ram 2 | . . 2 Kick . | . . . Crush 2 | . 2 . Escape Stasis . | . . . Rewire . | . . . Trap . | . . . Miscellaneous . | . . . Route ------- -11/Scrapyard -10/Materials (discovered 2 exits: [*Mat] / [*Min]) -10/Mines History --------- Turn | Location | Event 67 | -11/Scrapyard | Discovered new exit (range 15) 136 | -11/Scrapyard | Entered Materials 307 | -10/Materials | Build established: Mutant 784 | -10/Materials | Core integrity fell below 50% 793 | -10/Materials | Discovered new exit (range 15) 1038 | -10/Materials | Discovered new exit (range 15) 1054 | -10/Materials | Entered Mines 1076 | -10/Mines | Received a Rocket Launcher from a helpful Derelict 1083 | -10/Mines | Met a Derelict bent on vengeance 1103 | -10/Mines | Assembled infested the area 1108 | -10/Mines | Assisted by a Guerilla fighting off Assembled 1167 | -10/Mines | Core integrity fell below 20% 1208 | -10/Mines | Destroyed by D-53 Grenadier with Mini Grenade Launcher Last Messages --------------- 01079_ Dropped Lgt. Assault Rifle. 01079_ Dropped Med. Laser. 01081_ Acquired Rocket Launcher. 01103_ ALERT: Infestation in the mines, dispatching Demolisher response squad. 01108_ A derelict emerges from the shadows: "You need to get out of here! I've been tracking a group of Assembled to figure out where they're coming from, and they're closing on this area, come on!" 01153_ XC-OWX(g) destroyed. 01157_ Destroyed Asb. F-torch. 01174_ as-74764 destroyed. 01192_ Imp. Ion Engine destroyed. 01193_ T-07 Excavator destroyed. 01194_ Grenade Launcher destroyed. 01195_ The unstable cave ceiling collapses. 01202_ Rocket Launcher destroyed. 01204_ The unstable cave ceiling collapses. 01204_ Autogun destroyed. 01206_ R-06 Scavenger collects Tractor Beam. 01208_ The unstable cave ceiling collapses. Map ----- +----------------------------------------------------+ | | | | | ??????????????????????????????????????????????? | | ????????????????????????????????????###???????? | | ???????????????????????####????????## ####???? | | ??????????????????????## ##??????# ##??? | | ??????????????????##### #??????? #??? | | ??????????????????# ##??????? #??? | | ??????????????????# #??# #???????# #??? | | ??????????????????# #???# #???????# #??? | | ????????????????### #???# #??????## #??? | | ???????????????## #???## #??##### [ #??? | | ??????????????## #????## #?## [ #??? | | ?????????????## #?????# ### # #??? | | ?????????????# #?????# %% ## #??? | | ?????????????# ##?????####### ##?? ?? | | ?????????????## ###???#######??## #??? #? | | ?????????????# #????## ##??# #???? #? | | ?????????????# #???## ##?## ##???? #? | | ?????????????# ###### #??# #?????? #? | | ?????????????## ##?# #####?? #? | | ?????????????# ### ## ## #? | | ?????????????######## % ## #? | | ????????????????????# #? | | ???????????????????## ####?? | | ???????????????????# @ ###????? | | ???????????????????## = ##??????? | | ????????????????????## dd # ##???????? | | ?????????????????????## ###????????? | | ??????????????????????# r ##??????????? | | ??????????????????????# ## #???????????? | | ??????????????????????# ?? #???????????? | | ??????????????????????# ?? ##???????????? | | ??????????????????????# ??# #????????????? | | ??????????????????????#????# #????????????? | | ???????????????????????????# ????????????? | | ????????????????????????????# #???????????? | | ????????????????????????????# ##???????????? | | ????????????????????????????## #?????????????? | | ??????????????????????????????# ??????????????? | | ??????????????????????????????? ??????????????? | | ??????????????????????????????????????????????? | | ??????????????????????????????????????????????? | | ??????????????????????????????????????????????? | | ??????????????????????????????????????????????? | | ??????????????????????????????????????????????? | | ??????????????????????????????????????????????? | | ??????????????????????????????????????????????? | | ??????????????????????????????????????????????? | | ??????????????????????????????????????????????? | +----------------------------------------------------+ Best States ------------- Heat Dissipation 25 Energy Generation 12 Energy Capacity 265 Matter Stores 300 Matter Capacity 300 Sight Range 16 Terrain Scan Density 10 Armor Coverage 150 Evasion (%) 50 Recoil Reduction 2 Item Schematics ----------------- None Robot Schematics ------------------ None Fabricated ------------ Nothing Repaired ---------- Nothing Studied --------- None Alien Tech Used ----------------- None Achievements -------------- None Challenges ------------ None Game ------ Seed HeartVisualSpear Manual? 0 Play Time 00:13:08 Cumulative 62.5 hours Start 2026.04.18 @ 16:22:06 End 2026.04.18 @ 17:29:47 Sessions 3 Manual Loads 0 Difficulty Rogue Special Mode None Game No. 122 Rogue 122 Adventurer 0 Explorer 0 Win Type - Total 0 Types 0/0/0/0/0/0/0/0/0/0 Lore% 15 Gallery% 31 Achievement% 21 Wizard Run 0 Options --------- Layout 0 ASCII 0 Keyboard 1 Movement Vi Keybinds 0 Fullscreen 2 Font 18/T_Terminus Map View 76x50 Zoom Use 0% Tactical HUD 1 Map Filters SHIFT_HUE(5) Filters LOW_CONTRAST(10,2,20)|SHIFT_HUE(5) Steam 1 RUN: 973bdc61-b3cc-4135-b273-c31cace51c27